fUSD/lending_fUSD_20240513
["ID","MTS","AMOUNT","RATE_DAILY","PERIOD"]
[326928860,1715603438340,-9.53161305,0.00011748,2]
[326928861,1715603438432,-2316.57970047,0.00011748,2]
[326928862,1715603438442,-155.23277733,0.00011748,2]
[326928863,1715603438455,-500.0,0.00011748,2]
[326928864,1715603438465,-155.40968487,0.00011748,2]
[326928865,1715603438474,-155.0,0.00011748,2]
[326928866,1715603438484,-449.49960028,0.00011748,2]
[326928867,1715603438494,-305.95729831,0.00011748,2]
[326928868,1715603438504,-8360.93923829,0.00011748,2]
[326928869,1715603438514,-405.519977,0.00011748,2]
[326928870,1715603438523,-339.57491762,0.00011748,2]
[326928871,1715603438532,-344.0450991,0.00011748,2]
[326928872,1715603438542,-155.0,0.00011748,2]
[326928873,1715603438552,-362.74560227,0.00011748,2]
[326928874,1715603438562,-265.46357852,0.00011748,2]
[326928875,1715603438571,-3488.62355985,0.00011748,2]
[326928876,1715603438581,-409.26681316,0.00011748,2]
[326928877,1715603438591,-159.62507899,0.00011748,2]
[326928878,1715603438600,-155.0,0.00011748,2]
[326928879,1715603438610,-537.03498854,0.00011748,2]
[326928881,1715603438619,-155.0,0.00011748,2]
[326928883,1715603438628,-488.3397664,0.00011748,2]
[326928885,1715603438638,-1034.05079332,0.00011748,2]
[326928887,1715603438647,-155.0,0.00011748,2]
[326928889,1715603438656,-3078.76371322,0.00011748,2]
[326928891,1715603438666,-327.17356754,0.00011748,2]
[326928893,1715603438675,-155.0,0.00011748,2]
[326928894,1715603438684,-3057.79124914,0.00011748,2]
[326928895,1715603438694,-206.54279872,0.00011748,2]
[326928896,1715603438703,-1270.95302467,0.00011748,2]
[326928898,1715603438713,-515.72707236,0.00011748,2]
[326928900,1715603438722,-155.0,0.00011748,2]
[326928902,1715603438731,-207.18111686,0.00011748,2]
[326928904,1715603438741,-535.13320909,0.00011748,2]
[326928906,1715603438751,-642.75426477,0.00011748,2]
[326928908,1715603438761,-155.0,0.00011748,2]
[326928909,1715603438770,-155.0,0.00011748,2]
[326928910,1715603438781,-304.15399791,0.00011748,2]
[326928911,1715603438790,-155.25674088,0.00011748,2]
[326928912,1715603438800,-194.02778672,0.00011748,2]
[326928913,1715603438809,-301.3118537,0.00011748,2]
[326928914,1715603438820,-1213.08546547,0.00011748,2]
[326928915,1715603438830,-155.28386556,0.00011748,2]
[326928916,1715603438841,-374.6616476,0.00011748,2]
[326928917,1715603438851,-370.59680396,0.00011748,2]
[326928918,1715603438860,-1379.286185,0.00011748,2]
[326928919,1715603438869,-158.77584422,0.00011748,2]
[326928920,1715603438879,-391.14457609,0.00011748,2]
[326928921,1715603438888,-155.0,0.00011748,2]
[326928922,1715603438899,-223.2617011,0.00011748,2]
[326928923,1715603438908,-882.73292549,0.00011748,2]
[326928924,1715603438918,-5557.31186524,0.00011749,2]
[326928925,1715603438928,-30258.711,0.0001175,2]
[326928926,1715603438937,-203987.16053468,0.0001175,2]
[326928927,1715603438947,-2287112.40999783,0.0001175,2]
[326928928,1715603438959,-139240.6717799,0.0001175,2]
[326928929,1715603438975,-6523.18908945,0.0001175,2]
[326928930,1715603440522,-327.0653824,0.0001175,2]
[326928931,1715603440630,-23552.37910163,0.0001175,2]
[326928932,1715603440660,-596.36647081,0.0001175,2]
[326928933,1715603440671,-17617.3086208,0.0001175,2]
[326928934,1715603440683,-1337.1901088,0.0001175,2]
[326928935,1715603440716,161.1,0.00010959,2]
[326928936,1715603440728,-5643.69995203,0.0001175,2]
[326928937,1715603440740,-1087.29,0.0001175,2]
[326928938,1715603440751,-17809.42649941,0.0001175,2]
[326928939,1715603440763,-10030.75000833,0.0001175,2]
[326928940,1715603440774,-4364.5127787,0.0001175,2]
[326928941,1715603440785,-253.44497898,0.0001175,2]
[326928942,1715603440796,-345.91147168,0.0001175,2]
[326928943,1715603440808,-705.1796469,0.0001175,2]
[326928944,1715603440820,-1285.3087,0.0001175,2]
[326928945,1715603440831,-3691.23341242,0.0001175,2]
[326928946,1715603440842,-799.464547,0.0001175,2]
[326928947,1715603440853,-3351.74839999,0.0001175,2]
[326928948,1715603440866,-4615.48261927,0.0001175,2]
[326928949,1715603440877,-39224.19838232,0.0001175,2]
[326928950,1715603440889,-6633.4271,0.0001175,2]
[326928951,1715603440901,-281.186742,0.0001175,2]
[326928953,1715603441110,-406.07426366,0.0001175,2]
[326928954,1715603441121,-1841.28543829,0.0001175,2]
[326928955,1715603441133,-1780.90789548,0.0001175,2]
[326928987,1715603443445,-628.84,0.0001175,2]
[326928989,1715603443472,-1961.70242835,0.0001175,2]
[326928990,1715603443484,-915148.97032592,0.0001175,2]
[326928991,1715603443503,-518.6918258,0.0001175,2]
[326928992,1715603443528,-903.814,0.0001175,2]
[326928993,1715603443539,-1161.985,0.0001175,2]
[326928994,1715603443632,-1498.0998,0.0001175,2]
[326928995,1715603443658,-314.03181,0.0001175,2]
[326929227,1715603446461,-70441.50156096,0.0001175,2]
[326929230,1715603446474,-3308.66806079,0.0001175,2]
[326929232,1715603446485,-733.503,0.0001175,2]
[326929233,1715603446777,-4752.33374793,0.0001175,2]
[326929234,1715603446789,-307.44854805,0.0001175,2]
[326929235,1715603446800,-3130.15,0.0001175,2]
[326929236,1715603451251,214.8,0.00010959,2]
[326929237,1715603461806,179.0,0.00010959,2]
[326929238,1715603472324,895.0,0.00010959,2]
[326929239,1715603511049,15101.51394468,0.00011,2]
[326929240,1715603515272,2955.24534072,0.00010959,2]
[326929241,1715603644757,887.1,0.00011321,2]
[326929242,1715603720763,177.17,0.000113,2]
[326929243,1715603745669,39851.94443044,0.000109,2]
[326929244,1715603824187,2033.06,0.00011101,3]
[326929245,1715604064465,800.0,0.0001105,2]
[326929246,1715604182834,591.06,0.00010919,2]
[326929247,1715604274512,3501.49195481,0.00011273,2]
[326929275,1715604400466,1563.34563265,0.00011331,2]
[326929276,1715604574877,250.0,0.00010843,2]
[326929282,1715604632415,-515.89571156,0.00011549,2]
[326929283,1715604632425,-500.0,0.0001155,2]
[326929285,1715604632438,-2846.8771,0.0001155,2]
[326929286,1715604632447,-150.0,0.00011616,2]
[326929287,1715604632456,-4614.70078269,0.0001163,2]
[326929288,1715604632490,-977.03499773,0.0001163,2]
[326929289,1715604632502,-384.20256361,0.0001163,2]
[326929290,1715604632515,-1535.50469855,0.0001163,2]
[326929291,1715604632524,-604.25722708,0.00011631,2]
[326929292,1715604632539,-648.56859254,0.00011631,2]
[326929293,1715604632551,-3890.63499245,0.00011631,2]
[326929294,1715604632560,-882.73292549,0.00011649,2]
[326929295,1715604632569,-4319.84208206,0.0001165,2]
[326929296,1715604632581,-722.23231057,0.0001165,2]
[326929297,1715604632592,-662.43919484,0.0001165,2]
[326929298,1715604632612,-590.10296194,0.0001165,2]
[326929299,1715604632624,-19052.17027641,0.0001165,2]
[326929300,1715604632635,-13797.04186635,0.0001165,2]
[326929301,1715604632649,-492.84148313,0.0001165,2]
[326929302,1715604632661,-9814.19417045,0.0001165,2]
[326929303,1715604632676,-9297.92330463,0.0001165,2]
[326929304,1715604632690,-4147.36848739,0.0001165,2]
[326929305,1715604632701,-2084.58601039,0.0001165,2]
[326929306,1715604632712,-441.23700119,0.0001165,2]
[326929307,1715604632786,-504.69421276,0.0001165,2]
[326929310,1715604632798,-579.0723931,0.0001165,2]
[326929312,1715604632808,-322.22208992,0.0001165,2]
[326929314,1715604632820,-991.38567962,0.0001165,2]
[326929316,1715604632832,-3937.84036003,0.0001165,2]
[326929318,1715604632844,-3853.55182797,0.0001165,2]
[326929349,1715604637724,-517.9058607,0.0001165,2]
[326929350,1715604637739,-500.6964493,0.0001165,2]
[326929351,1715604637804,-358.9537836,0.0001165,2]
[326929352,1715604637816,-23011.69819365,0.0001165,2]
[326929353,1715604637827,-245000.0,0.0001165,2]
[326929354,1715604637836,-30258.711,0.0001165,2]
[326929355,1715604637847,-3322.3238,0.0001165,2]
[326929356,1715604637857,-174.53743641,0.0001165,2]
[326929357,1715604637867,-172.03572244,0.0001165,2]
[326929358,1715604637876,-360.0,0.00011663,2]
[326929359,1715604637886,-1813.57339,0.0001169,2]
[326929360,1715604637896,-333.3734532,0.00011699,2]
[326929361,1715604637906,-3658.95770089,0.00011699,2]
[326929362,1715604637915,-1813.57339,0.000117,2]
[326929363,1715604637924,-1707.53,0.00011713,4]
[326929364,1715604637934,-1813.57339,0.0001174,2]
[326929365,1715604637945,-155.28386556,0.00011748,2]
[326929367,1715604637954,-370.59680396,0.00011748,2]
[326929368,1715604637963,-223.2617011,0.00011748,2]
[326929369,1715604637972,-1379.286185,0.00011748,2]
[326929370,1715604637982,-155.0,0.00011748,2]
[326929371,1715604637992,-391.14457609,0.00011748,2]
[326929372,1715604638002,-158.77584422,0.00011748,2]
[326929373,1715604638012,-304.15399791,0.00011748,2]
[326929374,1715604638022,-642.75426477,0.00011748,2]
[326929375,1715604638032,-155.0,0.00011748,2]
[326929376,1715604638041,-207.18111686,0.00011748,2]
[326929377,1715604638052,-155.25674088,0.00011748,2]
[326929378,1715604638062,-194.02778672,0.00011748,2]
[326929379,1715604638071,-535.13320909,0.00011748,2]
[326929380,1715604638081,-2576.83533335,0.00011748,2]
[326929381,1715604638090,-1213.08546547,0.00011748,2]
[326929382,1715604638099,-155.0,0.00011748,2]
[326929383,1715604638109,-155.0,0.00011748,2]
[326929384,1715604638118,-277.64914812,0.00011748,2]
[326929385,1715604638127,-301.3118537,0.00011748,2]
[326929386,1715604638137,-327.17356754,0.00011748,2]
[326929387,1715604638147,-206.54279872,0.00011748,2]
[326929389,1715604638156,-3057.79124914,0.00011748,2]
[326929391,1715604638166,-1270.95302467,0.00011748,2]
[326929393,1715604638175,-155.0,0.00011748,2]
[326929394,1715604638184,-3078.76371322,0.00011748,2]
[326929395,1715604638201,-488.3397664,0.00011748,2]
[326929396,1715604638210,-155.0,0.00011748,2]
[326929397,1715604638219,-1034.05079332,0.00011748,2]
[326929398,1715604638229,-344.0450991,0.00011748,2]
[326929399,1715604638238,-409.26681316,0.00011748,2]
[326929400,1715604638248,-405.519977,0.00011748,2]
[326929401,1715604638257,-159.62507899,0.00011748,2]
[326929402,1715604638268,-155.0,0.00011748,2]
[326929403,1715604638278,-339.57491762,0.00011748,2]
[326929404,1715604638287,-362.74560227,0.00011748,2]
[326929405,1715604638296,-265.46357852,0.00011748,2]
[326929406,1715604638316,-3488.62355985,0.00011748,2]
[326929407,1715604638327,-155.0,0.00011748,2]
[326929408,1715604638336,-449.49960028,0.00011748,2]
[326929409,1715604638346,-155.23277733,0.00011748,2]
[326929410,1715604638355,-155.0,0.00011748,2]
[326929411,1715604638365,-500.0,0.00011748,2]
[326929412,1715604638375,-155.40968487,0.00011748,2]
[326929413,1715604638385,-2316.57970047,0.00011748,2]
[326929414,1715604638395,-305.95729831,0.00011748,2]
[326929415,1715604638404,-8360.93923829,0.00011748,2]
[326929416,1715604638414,-374.6616476,0.00011748,2]
[326929417,1715604638424,-20019.16519373,0.00011748,2]
[326929418,1715604638433,-492.14409897,0.00011749,2]
[326929419,1715604638447,-5557.31186524,0.00011749,2]
[326929420,1715604638457,-204305.71992668,0.0001175,2]
[326929421,1715604638466,-1982337.37534146,0.0001175,2]
[326929422,1715604638480,-139240.6717799,0.0001175,2]
[326929423,1715604638496,-83882.38041815,0.0001175,2]
[326929440,1715604639953,-450.0,0.0001175,2]
[326929441,1715604640143,-261.81616911,0.0001175,2]
[326929442,1715604640154,-1026.04080833,0.0001175,2]
[326929490,1715604642749,-371927.97877733,0.0001175,2]
[326929491,1715604642999,-679.89930432,0.0001175,2]
[326929493,1715604643011,-3642.79917391,0.0001175,2]
[326929495,1715604643023,-1365.42148699,0.0001175,2]
[326929498,1715604643035,-1598.03354687,0.0001175,2]
[326929499,1715604643046,-2971.4261541,0.0001175,2]
[326929501,1715604643057,-723.49542968,0.0001175,2]
[326929502,1715604643068,-9951.688092,0.0001175,2]
[326929504,1715604643105,-20508.51,0.0001175,2]
[326929505,1715604643141,-1396.0399734,0.0001175,2]
[326929523,1715604645792,-7308.60069568,0.0001175,2]
[326929528,1715604670331,160.63396036,0.00010843,2]
[326929529,1715604672004,198.58055109,0.00010843,2]
[326929530,1715604681525,6875.84,0.00010843,2]
[326929532,1715604717792,474.34,0.00011228,2]
[326929533,1715604726713,450.3,0.00011199,2]
[326929534,1715604767562,3501.49195481,0.00011238,2]
[326929535,1715604828328,154.3,0.00011124,2]
[326929536,1715604885113,1563.34563265,0.00011397,2]
[326929537,1715604994109,226.16419334,0.00011397,2]
[326929538,1715604995013,155.0,0.00011397,2]
[326929539,1715604999543,37791.56628162,0.00011397,2]
[326929540,1715605000482,969.40394336,0.00011397,2]
[326929541,1715605000967,322.52570113,0.00011397,2]
[326929542,1715605003233,1103.33259888,8.548e-05,2]
[326929543,1715605003750,269.08027735,9.118e-05,2]
[326929544,1715605006758,417.85655734,0.00011397,2]
[326929545,1715605010940,156.24135166,0.00011397,2]
[326929546,1715605018412,969.09233054,0.00011397,2]
[326929547,1715605019050,-515.89571156,0.0001154,2]
[326929548,1715605019072,-155.0,0.00011541,2]
[326929549,1715605019094,-377.77300441,0.00011541,2]
[326929550,1715605019118,-409.44014041,0.00011542,2]
[326929551,1715605044907,158.32,9.331e-05,2]
[326929552,1715605044959,158.32,0.00010497,2]
[326929553,1715605048146,375.25114362,0.00011083,2]
[326929554,1715605048170,336.74885638,0.00011083,2]
[326929555,1715605111647,250.0,0.00011203,2]
[326929556,1715605117407,156.59,0.00011246,2]
[326929557,1715605153551,300.0,0.00011246,2]
[326929558,1715605153619,400.04711686,0.00011246,2]
[326929559,1715605154686,1172.22232598,0.00011246,2]
[326929560,1715605167031,315.27,0.00011043,2]
[326929561,1715605169174,250.0,0.00011043,2]
[326929562,1715605175576,399.65778656,0.00011246,2]
[326929563,1715605175924,419.46391422,0.00011549,2]
[326929564,1715605175946,4000.0,0.00011549,2]
[326929565,1715605175967,4000.0,0.00011549,2]
[326929566,1715605175988,4000.0,0.00011549,2]
[326929567,1715605176009,4000.0,0.00011549,2]
[326929568,1715605176031,2729.29217419,0.00011549,2]
[326929569,1715605239583,23881.13776841,0.00011043,2]
[326929571,1715605353322,161.38,8.828e-05,2]
[326929572,1715605353602,161.38,0.00011035,2]
[326929573,1715605428395,826.9939984,0.00011035,60]
[326929574,1715605446382,551.32933227,0.00011035,60]
[326929575,1715605464384,459.44111022,0.00011035,60]
[326929576,1715605484373,459.44111022,0.00011035,60]
[326929577,1715605496135,1563.34563265,0.00011368,2]
[326929578,1715605500371,239.36881843,0.00011035,60]
[326929579,1715605516386,239.36881843,0.00011035,60]
[326929580,1715605532385,239.36881843,0.00011035,60]
[326929582,1715605550402,239.36881843,0.00011035,60]
[326929583,1715605568383,239.36881843,0.00011035,60]
[326929584,1715605590390,239.36881843,0.00011035,60]
[326929585,1715605608394,239.36881843,0.00011035,60]
[326929586,1715605622905,156.59,0.00011044,2]
[326929587,1715605626397,239.36881843,0.00011035,60]
[326929589,1715605649029,250.0,0.00010921,2]
[326929590,1715605652407,382.25500368,0.00011035,60]
[326929594,1715605749474,315.55,0.00010916,2]
[326929602,1715605831913,-1283.98392734,0.0001154,2]
[326929603,1715605831923,-500.0,0.0001155,2]
[326929604,1715605831934,-523.5502,0.0001155,2]
[326929605,1715605831943,-154196.6054,0.0001155,2]
[326929606,1715605831953,-30258.711,0.0001155,2]
[326929607,1715605831963,-800.60107,0.0001163,2]
[326929608,1715605831973,-317.26514807,0.00011631,2]
[326929609,1715605831983,-1000.0,0.0001165,2]
[326929610,1715605831997,-10000.0,0.0001165,2]
[326929611,1715605832007,-68060.2852,0.0001165,2]
[326929612,1715605832016,-7500.0,0.0001165,2]
[326929613,1715605832026,-403.43735746,0.0001165,2]
[326929614,1715605832038,-3864.30255369,0.0001165,2]
[326929615,1715605832047,-338.2504887,0.0001165,2]
[326929616,1715605832057,-174.53743641,0.0001165,2]
[326929617,1715605832069,-366.2301591,0.0001165,2]
[326929618,1715605832079,-4331.64577416,0.0001165,2]
[326929619,1715605832090,-172.03572244,0.0001165,2]
[326929621,1715605832100,-158.32,0.00011663,2]
[326929622,1715605832110,-430.4,0.00011663,2]
[326929624,1715605832119,-190.88176305,0.0001174,2]
[326929626,1715605832129,-685.23241035,0.00011748,2]
[326929628,1715605832139,-492.14409897,0.00011748,2]
[326929630,1715605832148,-374.6616476,0.00011748,2]
[326929632,1715605832158,-2316.57970047,0.00011748,2]
[326929634,1715605832167,-155.40968487,0.00011748,2]
[326929635,1715605832177,-3488.62355985,0.00011748,2]
[326929637,1715605832187,-155.0,0.00011748,2]
[326929639,1715605832196,-339.57491762,0.00011748,2]
[326929641,1715605832206,-265.46357852,0.00011748,2]
[326929643,1715605832215,-449.49960028,0.00011748,2]
[326929645,1715605832225,-1034.05079332,0.00011748,2]
[326929647,1715605832234,-155.23277733,0.00011748,2]
[326929648,1715605832244,-405.519977,0.00011748,2]
[326929650,1715605832254,-155.0,0.00011748,2]
[326929652,1715605832263,-155.0,0.00011748,2]
[326929654,1715605832273,-344.0450991,0.00011748,2]
[326929656,1715605832283,-305.95729831,0.00011748,2]
[326929658,1715605832293,-488.3397664,0.00011748,2]
[326929660,1715605832302,-362.74560227,0.00011748,2]
[326929661,1715605832312,-500.0,0.00011748,2]
[326929662,1715605832322,-8360.93923829,0.00011748,2]
[326929663,1715605832332,-3078.76371322,0.00011748,2]
[326929664,1715605832342,-158.77584422,0.00011748,2]
[326929665,1715605832351,-159.62507899,0.00011748,2]
[326929666,1715605832361,-155.0,0.00011748,2]
[326929667,1715605832370,-155.25674088,0.00011748,2]
[326929668,1715605832380,-301.3118537,0.00011748,2]
[326929669,1715605832389,-1270.95302467,0.00011748,2]
[326929670,1715605832398,-1379.286185,0.00011748,2]
[326929671,1715605832408,-207.18111686,0.00011748,2]
[326929672,1715605832417,-3057.79124914,0.00011748,2]
[326929673,1715605832426,-206.54279872,0.00011748,2]
[326929675,1715605832440,-194.02778672,0.00011748,2]
[326929677,1715605832450,-327.17356754,0.00011748,2]
[326929679,1715605832466,-155.0,0.00011748,2]
[326929681,1715605832477,-370.59680396,0.00011748,2]
[326929683,1715605832487,-277.64914812,0.00011748,2]
[326929685,1715605832497,-155.0,0.00011748,2]
[326929687,1715605832506,-535.13320909,0.00011748,2]
[326929689,1715605832516,-1213.08546547,0.00011748,2]
[326929691,1715605832525,-223.2617011,0.00011748,2]
[326929693,1715605832535,-304.15399791,0.00011748,2]
[326929695,1715605832544,-155.28386556,0.00011748,2]
[326929698,1715605832554,-155.0,0.00011748,2]
[326929700,1715605832564,-155.0,0.00011748,2]
[326929702,1715605832573,-2576.83533335,0.00011748,2]
[326929704,1715605832582,-516.42360931,0.00011748,2]
[326929706,1715605832591,-409.03689151,0.00011748,2]
[326929708,1715605832601,-391.10109807,0.00011748,2]
[326929710,1715605832612,-155.0,0.00011748,2]
[326929712,1715605832622,-1707.53,0.00011748,4]
[326929714,1715605832631,-30565.16519373,0.00011748,2]
[326929716,1715605832640,-3061.93828439,0.00011749,2]
[326929718,1715605832650,-204.87708912,0.00011749,2]
[326929720,1715605832660,-5557.31186524,0.00011749,2]
[326929722,1715605832670,-2793532.39110415,0.0001175,2]
[326929726,1715605832696,-13381.10496599,0.0001175,2]
[326929757,1715605833204,-5286.25021024,0.0001175,2]
[326929781,1715605837795,-821.3895,0.0001175,2]
[326929782,1715605837904,-2022.81688463,0.0001175,2]
[326929783,1715605837917,-734.70866164,0.0001175,2]
[326929784,1715605837930,-5825.6993,0.0001175,2]
[326929785,1715605837941,-2608.70054198,0.0001175,2]
[326929786,1715605837996,-192347.76773843,0.0001175,2]
[326929787,1715605838006,-1592301.97307251,0.0001175,2]
[326929788,1715605838017,-779839.3604712,0.0001175,2]
[326929789,1715605838030,-139553.8517799,0.0001175,2]
[326929815,1715605839926,-8718.88764493,0.0001175,2]
[326929816,1715605839939,-8602.07963177,0.0001175,2]
[326929817,1715605839952,-9703.64474437,0.0001175,2]
[326929819,1715605839964,-8643.67207993,0.0001175,2]
[326929826,1715605840027,-1906.93647508,0.0001175,2]
[326929829,1715605840040,-3250.0,0.0001175,2]
[326929831,1715605840052,-589.56767004,0.0001175,2]
[326929833,1715605840065,-399.31545818,0.0001175,2]
[326929841,1715605840133,-29028.315582,0.0001175,2]
[326929843,1715605840145,-46289.35930319,0.0001175,2]
[326929869,1715605840381,-724.36043818,0.0001175,2]
[326929871,1715605840394,-324.43169441,0.0001175,2]
[326929873,1715605840406,-1013.8937897,0.0001175,2]
[326930000,1715605842949,-915148.97032592,0.0001175,2]
[326930027,1715605845939,-208978.27418409,0.0001175,2]
[326930029,1715605845951,-2072.94766162,0.0001175,2]
[326930031,1715605845963,-2272.4580748,0.0001175,2]
[326930033,1715605845974,-500.0,0.0001175,2]
[326930035,1715605845985,-319.50316463,0.0001175,2]
[326930043,1715605846060,-10000.0,0.0001175,2]
[326930045,1715605846074,-6561.23247747,0.0001175,2]
[326930060,1715605846284,-371.88291753,0.0001175,2]
[326930061,1715605846296,-1324.8,0.0001175,2]
[326930062,1715605846318,-719.84129831,0.0001175,2]
[326930063,1715605846329,-12593.9,0.0001175,2]
[326930064,1715605846339,-454.68489641,0.0001175,2]
[326930380,1715605899166,170.0,0.00011141,2]
[326930381,1715605975437,3000.0,0.00010976,2]
[326930382,1715605976260,161.38,8.781e-05,2]
[326930383,1715606000835,790.29145154,0.00011243,2]
[326930384,1715606033948,158.32,8.772e-05,2]
[326930385,1715606113564,428.1336723,0.00025,120]
[326930386,1715606140968,428.133672,0.00025,120]
[326930387,1715606167840,428.133672,0.00025,120]
[326930388,1715606194052,428.133672,0.00025,120]
[326930389,1715606209271,1000.0,0.0001056,2]
[326930390,1715606215053,428.133672,0.00025,120]
[326930391,1715606239156,428.133672,0.00025,120]
[326930392,1715606265440,428.133672,0.00025,120]
[326930393,1715606289174,428.133672,0.00025,120]
[326930394,1715606323054,428.133672,0.00025,120]
[326930395,1715606351033,250.0,0.0001056,2]
[326930396,1715606444905,154.3,0.00010561,2]
[326930397,1715606449733,8774.00484497,0.0001056,2]
[326930399,1715606450846,-300.0,0.000116,4]
[326930400,1715606461503,-150.0,0.00011482,2]
[326930401,1715606461527,-22807.72639511,0.00011482,2]
[326930402,1715606461551,-150.0,0.00011484,2]
[326930403,1715606461575,-150.0,0.00011493,2]
[326930404,1715606461598,-150.0,0.00011502,2]
[326930405,1715606461619,-358.55514353,0.00011502,2]
[326930406,1715606461642,-3084.64126091,0.00011502,2]
[326930407,1715606461664,-244.1534394,0.00011502,2]
[326930408,1715606461686,-225.5003258,0.00011502,2]
[326930409,1715606461708,-225.88158175,0.00011502,2]
[326930410,1715606461729,-179.03484571,0.00011502,2]
[326930411,1715606461753,-150.0,0.00011503,2]
[326930412,1715606461779,-150.0,0.00011509,2]
[326930413,1715606461807,-150.0,0.00011516,2]
[326930414,1715606461832,-150.0,0.00011516,2]
[326930415,1715606461867,-150.0,0.00011517,2]
[326930416,1715606461892,-150.0,0.00011518,2]
[326930417,1715606461917,-150.0,0.00011523,2]
[326930418,1715606461943,-150.0,0.00011523,2]
[326930419,1715606461973,-150.0,0.00011524,2]
[326930420,1715606461999,-150.0,0.00011527,2]
[326930421,1715606462026,-150.0,0.0001153,2]
[326930422,1715606462056,-150.0,0.0001153,2]
[326930423,1715606462082,-150.0,0.00011536,2]
[326930424,1715606462107,-150.0,0.00011537,2]
[326930425,1715606462132,-150.0,0.0001154,2]
[326930426,1715606462159,-150.0,0.00011544,2]
[326930427,1715606462187,-150.0,0.00011545,2]
[326930428,1715606462213,-150.0,0.00011549,2]
[326930429,1715606462236,-500.0,0.0001155,2]
[326930430,1715606462262,-150.0,0.00011551,2]
[326930431,1715606462290,-150.0,0.00011552,2]
[326930432,1715606462315,-150.0,0.00011554,2]
[326930433,1715606462340,-150.0,0.00011555,2]
[326930434,1715606462364,-150.0,0.00011561,2]
[326930435,1715606462388,-150.0,0.00011562,2]
[326930436,1715606462413,-150.0,0.00011566,2]
[326930437,1715606462438,-150.0,0.00011569,2]
[326930438,1715606462463,-150.0,0.0001157,2]
[326930439,1715606462487,-150.0,0.0001157,2]
[326930440,1715606462510,-150.0,0.0001157,2]
[326930441,1715606462534,-150.0,0.00011575,2]
[326930442,1715606462557,-150.0,0.00011576,2]
[326930443,1715606462580,-150.0,0.00011582,2]
[326930444,1715606462603,-150.0,0.00011583,2]
[326930445,1715606462626,-150.0,0.00011583,2]
[326930446,1715606462649,-150.0,0.00011587,2]
[326930447,1715606462672,-425.91573532,0.0001159,2]
[326930448,1715606462694,-425.91573532,0.0001159,2]
[326930449,1715606462716,-425.91573532,0.0001159,2]
[326930450,1715606462737,-154.24,0.0001159,2]
[326930451,1715606462759,-154.24,0.0001159,2]
[326930452,1715606462781,-154.24,0.0001159,2]
[326930453,1715606462803,-154.24,0.0001159,2]
[326930454,1715606462825,-154.24,0.0001159,2]
[326930455,1715606462847,-154.24,0.0001159,2]
[326930456,1715606462868,-154.24,0.0001159,2]
[326930457,1715606462889,-154.24,0.0001159,2]
[326930458,1715606462912,-154.24,0.0001159,2]
[326930459,1715606462934,-154.24,0.0001159,2]
[326930460,1715606462962,-150.0,0.00011592,2]
[326930461,1715606462985,-150.0,0.00011594,2]
[326930462,1715606463009,-150.0,0.00011597,2]
[326930463,1715606463033,-2326.76401065,0.00011598,2]
[326930464,1715606463058,-1378.90396912,0.00011598,2]
[326930465,1715606463081,-2621.41862001,0.00011598,2]
[326930466,1715606463102,-158.3350855,0.00011598,2]
[326930467,1715606463124,-540.24391711,0.00011598,2]
[326930468,1715606463146,-155.0,0.00011598,2]
[326930469,1715606463175,-156.75949667,0.00011598,2]
[326930470,1715606463198,-707.84680816,0.00011598,2]
[326930471,1715606463221,-217.17697784,0.00011598,2]
[326930472,1715606463242,-610.61,0.00011599,2]
[326930473,1715606463264,-155.4414,0.00011599,2]
[326930474,1715606463290,-237.26391854,0.00011599,2]
[326930475,1715606463312,-782.7917937,0.00011599,2]
[326930476,1715606463336,-203159.75113785,0.000116,2]
[326930477,1715606463357,-347.954734,0.000116,2]
[326930478,1715606463381,-3005545.49943268,0.000116,2]
[326930479,1715606515412,158.32,8.513e-05,2]
[326930487,1715606817720,2551.15,0.00010959,2]
[326930488,1715606826101,179.67796345,0.00011393,2]